[Event "5th Baskent University Open 2022"]
[Site "Ankara"]
[Date "2022.07.06"]
[Round "7.8"]
[White "Sevgi, Volkan"]
[Black "Maruflu, Enes Yusuf"]
[Result "1-0"]
[ECO "C47"]
[WhiteElo "2305"]
[BlackElo "2046"]
[Annotator "TA"]
[PlyCount "127"]
[EventDate "2022.07.02"]
[EventType "swiss"]
[EventCountry "TUR"]
[SourceTitle "playchess.com"]
[Source "ChessBase"]
[SourceQuality "1"]
[TimeControl "5400+30"]

{[%evp 16,127,2,-1,0,0,0,-5,26,31,71,-15,16,0,14,11,47,12,12,0,0,0,0,-38,-37,-35,-43,-42,-41,-45,0,0,0,0,0,0,0,-15,0,0,0,0,698,698,670,665,592,246,242,245,231,237,212,185,202,191,191,108,96,91,142,74,115,120,183,188,244,199,206,208,393,381,491,473,472,470,622,606,602,606,597,530,766,745,527,477,730,662,970,1937,1754,1882,1650,1618,1531,1125,29965,29964,29966,29967,29961,29957,29972,29973,29969,29969,29974,29975,29976,29977,29977,29978,29977,29971]} 1. e4 {[%emt 0:04:00]} e5 {[%emt 0:01:00]} 2. Nf3 {[%emt 0:00:30]} Nc6 {[%emt 0:00:30]} 3. Nc3 {[%emt 0:00:30]} Nf6 {[%emt 0:00:00]} 4. g3 {[%emt 0:00:00]} d5 {[%emt 0:00:00]} 5. exd5 {[%emt 0:00:00]} Nxd5 {[%emt 0:00:00]} 6. Bg2 {[%emt 0:00:00]} Nxc3 {[%emt 0:00:00]} 7. bxc3 {[%emt 0:00:00]} Bc5 {[%emt 0:00:30]} 8. O-O {[%emt 0:00:00]} O-O {[%emt 0:00:00]} 9. Re1 {[%emt 0:00:00]} Qf6 {[%emt 0:01:00] C47: Scotch Four Knights and Four Knights with 4 g3.} 10. d3 {[%emt 0:00:30]} Bb6 {[%emt 0:03:30]} 11. a4 {[%emt 0:03:30] [#]} Bf5 $146 {[%emt 0:05:30][%cal Oe5e4] The position is equal.} ({Predecessor:} 11... h6 12. Qe2 Re8 13. Nd2 Bg4 14. Qf1 Rad8 15. Nc4 Bf3 16. Bxf3 Qxf3 17. Qg2 Qxg2+ 18. Kxg2 {1-0 (57) Pridorozhni,A (2514)-Ganguly,S (2613) St Petersburg 2014}) 12. Bg5 {[%emt 0:03:30]} Qd6 {[%emt 0:01:30]} 13. Be3 {[%emt 0:00:30]} (13. a5 $16 Bc5 14. d4 exd4 15. Nxd4 Bxd4 16. cxd4) 13... Rad8 {[%emt 0:02:30]} (13... Ba5 $5 {[%cal Ra5c3]}) 14. Nd2 {[%emt 0:00:30]} Bxe3 {[%emt 0:00:00]} 15. Rxe3 {[%emt 0:02:30]} Qc5 {[%emt 0:00:00]} 16. c4 {[%emt 0:04:30]} Rfe8 {[%emt 0:03:30]} 17. Rb1 {[%emt 0:03:30]} b6 {[%emt 0:10:30]} 18. Rb5 {[%emt 0:02:30]} Qd6 {[%emt 0:00:30]} 19. Bxc6 {[%emt 0:27:30]} Qxc6 {[%emt 0:00:30]} 20. Rbxe5 {[%emt 0:00:30]} Rxe5 {[%emt 0:01:30]} 21. Rxe5 {[%emt 0:00:00]} Bh3 {[%emt 0:04:30][%csl Gh3][%cal Rc6g2]} 22. Ne4 {[%emt 0:04:00][%cal Bd2e4,Be4c3,Bc3d5][%mdl 32]} Qxa4 {[%emt 0:03:30]} (22... h6 $5 {[%cal Rf7f5]}) 23. Nc3 $36 {[%emt 0:01:30][%mdl 2048] Black is under pressure.} Qa3 {[%emt 0:02:30]} 24. Nd5 {[%emt 0:07:30]} Qd6 {[%emt 0:05:30]} 25. Qe2 {[%emt 0:04:30] aiming for Re8+.} Bd7 {[%emt 0:02:30] Inhibits Re8+.} 26. d4 {[%emt 0:04:30][%cal Oc4c5]} Kf8 {[%emt 0:03:30]} 27. Qe4 {[%emt 0:07:30]} Qg6 {[%emt 0:16:30]} 28. Qe3 {[%emt 0:03:10]} (28. Nxc7 $2 Qxe4 29. Rxe4 Rc8 $17) 28... c6 {[%emt 0:09:30][%mdl 8192]} (28... Qd6 $11) 29. Qa3+ $18 {[%emt 0:00:18]} ({Stronger than} 29. Rg5 Qd6 30. Rxg7 Kxg7 $11) 29... c5 {[%emt 0:02:30]} 30. dxc5 {[%emt 0:00:30] Intending c6+ and mate.} Bc6 {[%emt 0:00:00]} 31. cxb6+ {[%emt 0:00:23]} (31. Qxa7 $142 {Qe7+ would kill now.} Qf6 32. Qxb6) 31... Qd6 {[%emt 0:00:00]} 32. Qxd6+ {[%emt 0:02:41]} Rxd6 {[%emt 0:00:30]} 33. bxa7 {[%emt 0:00:00][%mdl 4096] Endgame KRB-KRN} Rd7 {[%emt 0:00:00][%cal Bd6d7,Bd7a7,Ba7a3,Ba3c3][%mdl 32] Inhibits Re7.} 34. f4 {[%emt 0:01:18]} Rxa7 {[%emt 0:00:00]} 35. Nb4 {[%emt 0:00:00]} Be8 {[%emt 0:02:30]} 36. c5 {[%emt 0:00:58]} (36. Kf2 $18) 36... Ra3 $16 {[%emt 0:00:30]} 37. Nd5 {[%emt 0:06:16] Inhibits Rc3.} Bc6 {[%emt 0:01:30]} (37... Ra5 $142) 38. Ne7 {[%emt 0:03:21]} (38. Kf2 $142) 38... Be8 {[%emt 0:01:30] [#]} 39. Nf5 $1 {[%emt 0:00:18]} Bd7 {[%emt 0:00:30] [#]} (39... g6 $16) 40. Nd4 $1 $18 {[%emt 0:00:28]} Rc3 {[%emt 0:01:01]} (40... Ra4 {keeps fighting.}) 41. Kf2 {[%emt 0:01:02]} f6 {[%emt 0:01:57]} 42. Rd5 {[%emt 0:00:01]} Ke8 {[%emt 0:00:23]} (42... Ke7 {is a better defense.} 43. Ke1 Be6) 43. Ke2 {[%emt 0:00:13] Kd2 is the strong threat.} Bc8 {[%emt 0:00:12]} 44. Kd2 {[%emt 0:00:22]} Rc4 {[%emt 0:01:03]} 45. Nb5 {[%emt 0:00:30] And now Nd6+ would win.} Be6 {[%emt 0:00:30]} 46. Nd6+ {[%emt 0:00:30]} Ke7 {[%emt 0:00:30]} 47. Nxc4 {[%emt 0:00:30]} Bxd5 {[%emt 0:00:30] KB-KN} 48. Ne3 {[%emt 0:00:30]} Bh1 {[%emt 0:00:30]} 49. Kd3 {[%emt 0:00:30]} Kd7 {[%emt 0:00:30]} 50. Kd4 {[%emt 0:00:00]} Kc6 {[%emt 0:01:38]} (50... Bf3 $142 51. Nf5 g6) 51. Nf5 {[%emt 0:00:00]} g5 {[%emt 0:00:42]} 52. fxg5 {[%emt 0:00:13]} fxg5 {[%emt 0:00:30]} 53. Ne7+ {[%emt 0:00:00]} Kd7 {[%emt 0:00:16]} 54. Nd5 {[%emt 0:00:00]} Kc6 {[%emt 0:01:00]} 55. c4 {[%emt 0:00:07] Hoping for Nf6.} h5 {[%emt 0:00:53]} 56. Nb4+ {[%emt 0:00:30] White mates.} Kc7 {[%emt 0:00:30]} 57. Ke5 {[%emt 0:00:02]} Bf3 {[%emt 0:01:56]} 58. Kf5 {[%emt 0:00:06]} g4 {[%emt 0:01:01]} 59. Kg5 {[%emt 0:00:30]} Kd7 {[%emt 0:00:00]} 60. Kxh5 {[%emt 0:00:13]} Ke6 {[%emt 0:00:00]} 61. Nd5 {[%emt 0:00:09]} Kd7 {[%emt 0:00:47]} 62. Ne3 {[%emt 0:00:16]} Kc6 {[%emt 0:00:17]} 63. Nxg4 {[%emt 0:00:30]} Kxc5 {[%emt 0:00:30]} 64. Kg5 {[%emt 0:00:00] Weighted Error Value: White=0.23 (precise) /Black=0.44} 1-0

[Event "5th Baskent University Open 2022"]
[Site "Ankara"]
[Date "2022.07.06"]
[Round "7.9"]
[White "Makaraci, Tunahan"]
[Black "Akbas, Umut Ata"]
[Result "1-0"]
[ECO "B86"]
[WhiteElo "2130"]
[BlackElo "2298"]
[Annotator "TA"]
[PlyCount "61"]
[EventDate "2022.07.02"]
[EventType "swiss"]
[EventCountry "TUR"]
[SourceTitle "playchess.com"]
[Source "ChessBase"]
[SourceQuality "1"]
[TimeControl "5400+30"]

{[%evp 21,61,-27,-10,-33,-32,-14,-20,-11,29,38,25,-61,-60,-59,-57,-64,-83,-67,0,0,68,0,712,693,650,652,559,274,847,845,828,813,841,835,833,818,720,1112,1331,1329,5385,1357]} 1. e4 {[%emt 0:01:00]} c5 {[%emt 0:02:00]} 2. Nf3 {[%emt 0:00:30]} d6 {[%emt 0:00:30]} 3. d4 {[%emt 0:00:30]} cxd4 {[%emt 0:00:30]} 4. Nxd4 {[%emt 0:00:30]} Nf6 {[%emt 0:00:30]} 5. Nc3 {[%emt 0:00:30]} a6 {[%emt 0:00:00]} 6. Bc4 {[%emt 0:00:00]} e6 {[%emt 0:00:00]} 7. Bb3 {[%emt 0:00:00]} Nbd7 {[%emt 0:00:00]} 8. f4 {[%emt 0:00:30]} Nc5 {[%emt 0:00:00]} 9. e5 {[%emt 0:00:30]} dxe5 {[%emt 0:00:00]} 10. fxe5 {[%emt 0:00:30]} Nfd7 {[%emt 0:00:00]} 11. Bf4 {[%emt 0:00:30]} b5 {[%emt 0:00:00]} 12. Qg4 {[%emt 0:01:30][%cal Rb3e6] B86: Sicilian Scheveningen/Najdorf: 6 Bc4, without early ...b5.} h5 {[%emt 0:00:00]} 13. Qg3 {[%emt 0:00:00][%cal Od4e6] Nxe6! is the strong threat.} h4 {[%emt 0:00:30]} 14. Qg4 {[%emt 0:00:00][%cal Rb3e6] [#] The position is equal.} Nf6 $1 {[%emt 0:00:30]} 15. exf6 {[%emt 0:10:30]} Qxd4 {[%emt 0:00:30] [#]} 16. Rd1 $146 {[%emt 0:01:30] Active counter play!} (16. fxg7 $11 Qxg7 17. Qe2) ({Predecessor:} 16. fxg7 Qxg7 17. Qe2 Be7 18. O-O-O Bb7 19. Rhg1 Rc8 20. Kb1 Qg6 21. Rge1 Nxb3 22. axb3 {½-½ (46) Nightingale,D (2493)-Hertel,P (2666) ICCF email 2006}) 16... Qxf6 $15 {[%emt 0:02:30]} 17. O-O {[%emt 0:01:30]} Bb7 $1 {[%emt 0:19:30][%cal Oh4h3]} (17... Nxb3 $2 18. Bg5 e5 19. Qe4 Qb6+ 20. Kh1 $18) 18. Bd6 {[%emt 0:02:30]} Qh6 {[%emt 0:03:30]} 19. Bxf8 {[%emt 0:03:30]} Rxf8 {[%emt 0:02:30]} (19... Kxf8 $15 20. Rde1 (20. Qd4 Rc8 $17) 20... Re8) 20. Rfe1 {[%emt 0:03:30]} Nxb3 {[%emt 0:08:30]} ({Black should play} 20... h3 $11) 21. cxb3 $40 {[%emt 0:01:30][%mdl 128] White is up to no good.} (21. axb3 $14 f5 22. Qd4) 21... Rd8 $2 {[%emt 0:09:30][%mdl 8192]} (21... f5 $11 22. Qd4 Rf7) 22. Rxd8+ $18 {[%emt 0:00:30][%mdl 64] Remove Defender} Kxd8 {[%emt 0:00:30] [#]} 23. Qd4+ $1 {[%emt 0:00:00]} Ke7 {[%emt 0:01:30]} 24. Rd1 {[%emt 0:04:00]} (24. Qc5+ $142 Ke8 25. Qd6) 24... Rb8 $2 {[%emt 0:05:30]} (24... h3) 25. Qd6+ {[%emt 0:01:30] White is clearly winning.} Kf6 {[%emt 0:00:30]} 26. Rf1+ {[%emt 0:01:30]} Kg6 {[%emt 0:00:00]} 27. Qxb8 {[%emt 0:00:30]} Qe3+ {[%emt 0:00:00]} 28. Kh1 {[%emt 0:00:30]} Bxg2+ {[%emt 0:00:30]} 29. Kxg2 {[%emt 0:00:00]} h3+ {[%emt 0:00:30]} 30. Kh1 {[%emt 0:00:00]} e5 {[%emt 0:00:30]} 31. Qa8 {[%emt 0:00:00] Weighted Error Value: White=0.36/Black=0.31} 1-0

[Event "5th Baskent University Open 2022"]
[Site "Ankara"]
[Date "2022.07.06"]
[Round "7.10"]
[White "Zor, Alber Kadir"]
[Black "Citak, Selim"]
[Result "1/2-1/2"]
[ECO "B21"]
[WhiteElo "2116"]
[BlackElo "2176"]
[Annotator "TA"]
[PlyCount "89"]
[EventDate "2022.07.02"]
[EventType "swiss"]
[EventCountry "TUR"]
[SourceTitle "playchess.com"]
[Source "ChessBase"]
[SourceQuality "1"]
[TimeControl "5400+30"]

{[%evp 14,89,57,52,50,53,61,32,65,46,104,47,43,39,58,50,61,64,68,66,66,41,47,54,45,42,57,39,43,47,106,108,143,105,153,144,150,147,150,170,183,183,185,170,189,127,189,127,129,127,127,127,127,133,133,133,194,166,155,0,0,0,0,0,0,0,0,0,0,0,0,0,0,0,0,0,0,0]} 1. e4 {[%emt 0:01:00]} c5 {[%emt 0:01:00]} 2. Nc3 {[%emt 0:01:30]} Nc6 {[%emt 0:00:30]} 3. Bb5 {[%emt 0:00:30]} g6 {[%emt 0:00:30]} 4. Bxc6 {[%emt 0:00:30]} dxc6 {[%emt 0:02:30]} 5. f4 {[%emt 0:01:30]} Bg7 {[%emt 0:01:30]} 6. Nf3 {[%emt 0:00:30]} Nf6 {[%emt 0:03:30]} 7. O-O $1 {[%emt 0:02:30] 7.0-0 scores better than 7.d3.} O-O {[%emt 0:00:30]} 8. d3 {[%emt 0:00:30]} b6 {[%emt 0:06:30] B21: Sicilian: 2 f4 and Morra Gambit.} 9. a4 {[%emt 0:02:30]} a5 {[%emt 0:01:30]} 10. h3 {[%emt 0:09:30] [#]} Nd7 $146 {[%emt 0:03:30] White is slightly better.} ({Predecessor:} 10... Ne8 11. Be3 Nc7 12. Rb1 Ne6 13. Qd2 Nd4 14. Ne2 Nxf3+ 15. Rxf3 f5 16. exf5 Bxf5 {1-0 (51) Moiseenko,V (2532)-Nechaev,O (2371) Sochi 2019}) 11. Be3 {[%emt 0:00:30]} e5 {[%emt 0:03:30] [#]} (11... Nb8 $14) 12. Qd2 {[%emt 0:01:30]} (12. f5 $1 $16) 12... exf4 $1 $14 {[%emt 0:08:30]} 13. Bxf4 {[%emt 0:00:30]} Re8 {[%emt 0:00:30]} 14. Rae1 {[%emt 0:04:30]} Ne5 {[%emt 0:06:30]} 15. Nxe5 {[%emt 0:09:30]} Qd4+ {[%emt 0:00:30]} 16. Kh1 {[%emt 0:21:30]} Bxe5 {[%emt 0:00:30]} 17. Ne2 {[%emt 0:00:30][%cal Bc3e2,Be2g1,Bg1f3,Bf3d2,Bd2e4][%mdl 32]} (17. Bxe5 {is interesting.} Rxe5 18. b3 Rh5 19. Qf4) 17... Qd6 {[%emt 0:03:30]} ({Weaker is} 17... Qxb2 18. Rb1 Bxf4 19. Qxf4 $16 (19. Rxb2 $2 Bxd2 20. Rxb6 Bd7 $19)) (17... Qxa4 18. Bxe5 Rxe5 19. Qf4 $16) 18. Bxe5 {[%emt 0:00:30]} Qxe5 {[%emt 0:00:30]} 19. Ng1 {[%emt 0:00:30]} Be6 {[%emt 0:03:30]} 20. Nf3 {[%emt 0:03:30]} Qg7 {[%emt 0:01:30]} ({Less strong is} 20... Qxb2 21. Rb1 Qf6 22. Rxb6 $16) 21. b3 {[%emt 0:02:30]} h6 {[%emt 0:02:30]} (21... Rad8 $14) 22. Qf4 $16 {[%emt 0:01:30]} Rac8 {[%emt 0:01:30]} 23. Nd2 {[%emt 0:03:30]} Re7 {[%emt 0:20:30]} (23... g5 $142 24. Qf2 Qe5) 24. e5 {[%emt 0:02:30]} Bd5 {[%emt 0:01:30]} 25. c4 {[%emt 0:00:30]} Be6 {[%emt 0:00:30]} 26. Ne4 {[%emt 0:00:30]} Kh8 {[%emt 0:03:30]} 27. Re3 {[%emt 0:01:30]} Rd8 {[%emt 0:00:30]} 28. Nd6 {[%emt 0:01:30]} Kh7 {[%emt 0:02:30]} 29. Ref3 {[%emt 0:02:30]} (29. Qe4 $18) 29... Red7 {[%emt 0:01:56] [#]} (29... Rxd6 $16 30. exd6 Rd7) 30. Qe4 {[%emt 0:03:30]} (30. Qg3 $1 $18) 30... Rxd6 {[%emt 0:00:44]} 31. exd6 {[%emt 0:00:30]} Rxd6 {[%emt 0:00:00]} 32. Rf6 {[%emt 0:00:30]} Bf5 {[%emt 0:03:24] [#]} 33. Rxd6 {[%emt 0:00:30]} Bxe4 {[%emt 0:00:35]} 34. dxe4 {[%emt 0:00:30][%mdl 4096] Endgame Rd7 is the strong threat. KQ-KRR} Qe5 {[%emt 0:12:01]} (34... Qc3 $16) 35. Rxf7+ $18 {[%emt 0:11:30]} ({Much less strong is} 35. Rxc6 $6 Kg7 $14) 35... Kg8 {[%emt 0:00:02]} 36. Rdf6 {[%emt 0:00:33] White is more active.} ({White has to play} 36. Rff6 $16) 36... g5 $11 {[%emt 0:00:38] The position is equal.} 37. Rf8+ {[%emt 0:05:11]} Kg7 {[%emt 0:00:35]} 38. R8f7+ {[%emt 0:00:30]} Kg8 {[%emt 0:00:00]} 39. Rf1 {[%emt 0:00:51]} Qxe4 {[%emt 0:00:00]} 40. Rb7 {[%emt 0:01:10]} Qe2 {[%emt 0:00:48]} 41. Rf3 {[%emt 0:00:36]} Qe1+ {[%emt 0:00:30]} 42. Kh2 {[%emt 0:00:30]} Qe5+ {[%emt 0:00:00]} 43. Kh1 {[%emt 0:02:05]} Qe1+ {[%emt 0:00:22]} 44. Kh2 {[%emt 0:00:30]} Qe5+ {[%emt 0:00:00]} 45. Kg1 {[%emt 0:00:44] White really could win this.  Weighted Error Value: White=0.14 (very precise) /Black=0.14 (very precise)} 1/2-1/2

[Event "5th Baskent University Open 2022"]
[Site "Ankara"]
[Date "2022.07.06"]
[Round "7.11"]
[White "Unat, Can Haktan"]
[Black "Ozturk, Efe Hakan"]
[Result "1-0"]
[ECO "B42"]
[WhiteElo "2242"]
[BlackElo "2115"]
[Annotator "TA"]
[PlyCount "93"]
[EventDate "2022.07.02"]
[EventType "swiss"]
[EventCountry "TUR"]
[SourceTitle "playchess.com"]
[Source "ChessBase"]
[SourceQuality "1"]
[TimeControl "5400+30"]

{[%evp 13,93,56,50,24,61,67,74,71,81,56,56,52,77,48,54,49,56,48,54,45,35,14,32,0,0,0,0,0,0,0,0,0,0,0,7,7,7,7,11,0,0,0,27,27,40,40,40,40,40,27,27,20,40,40,27,0,27,27,40,40,40,40,40,27,27,27,40,27,27,2,5,2,97,97,119,53,846,843,5847,0,29994,29988]} 1. e4 {[%emt 0:03:00]} c5 {[%emt 0:01:00]} 2. Nf3 {[%emt 0:00:30]} e6 {[%emt 0:00:30]} 3. d4 {[%emt 0:00:30]} cxd4 {[%emt 0:00:30]} 4. Nxd4 {[%emt 0:00:00]} a6 {[%emt 0:00:00]} 5. Bd3 {[%emt 0:01:00]} Ne7 {[%emt 0:08:00]} 6. O-O {[%emt 0:05:30]} Nbc6 {[%emt 0:02:30]} 7. Nxc6 {[%emt 0:04:30]} Nxc6 {[%emt 0:06:30]} 8. c4 {[%emt 0:00:00] B42: Sicilian: Kan Variation: 5 Bd3.} d6 {[%emt 0:17:30]} 9. Nc3 {[%emt 0:01:00]} Be7 {[%emt 0:03:30]} 10. Be3 {[%emt 0:04:30] White is better.} O-O {[%emt 0:05:30]} 11. Qd2 {[%emt 0:00:30] White is more active.} Ne5 {[%emt 0:09:30]} 12. Be2 {[%emt 0:05:30] [#]} Qc7 $146 {[%emt 0:00:30]} ({Predecessor:} 12... Bd7 13. f4 Ng6 14. Rfd1 Bc6 15. Rac1 Qb8 16. a4 Bf6 17. Qxd6 Bxc3 18. Rxc3 Bxe4 19. Qxb8 Rfxb8 {½-½ (39) Arun,K (2277)-Gusain,H (2108) Nagpur 2008}) 13. Rac1 {[%emt 0:05:30]} b6 {[%emt 0:03:30]} 14. f4 {[%emt 0:01:30]} Nd7 {[%emt 0:00:30]} 15. Rfd1 {[%emt 0:01:30]} Rd8 {[%emt 0:04:30]} 16. Bf3 {[%emt 0:05:30][%cal Oe4e5]} Bb7 {[%emt 0:00:30]} 17. b4 {[%emt 0:01:30][%cal Bb2b4,Bb4b5][%mdl 32]} Rac8 {[%emt 0:14:40]} 18. Na4 {[%emt 0:14:30]} Bc6 {[%emt 0:02:44]} 19. b5 {[%emt 0:02:30]} Bb7 {[%emt 0:00:29]} 20. Qf2 {[%emt 0:02:30][%cal Ra4b6]} Nc5 {[%emt 0:01:07]} 21. Nxc5 {[%emt 0:00:30]} dxc5 {[%emt 0:02:09]} 22. a4 {[%emt 0:00:30]} axb5 {[%emt 0:02:13]} 23. axb5 {[%emt 0:00:30]} e5 {[%emt 0:00:06]} 24. f5 {[%emt 0:11:30]} Rxd1+ {[%emt 0:01:24]} 25. Rxd1 {[%emt 0:00:30]} Rd8 {[%emt 0:00:00]} 26. Rf1 {[%emt 0:00:30]} Qd7 {[%emt 0:04:20]} 27. Qg3 {[%emt 0:03:30]} f6 {[%emt 0:00:55] And now ...Qd3 would win.} 28. Rd1 {[%emt 0:00:30] Prevents Qd3.} Qc8 {[%emt 0:02:58]} 29. Ra1 {[%emt 0:01:30]} Qc7 {[%emt 0:01:46]} 30. h4 {[%emt 0:00:30]} Ra8 {[%emt 0:00:47]} 31. Re1 {[%emt 0:03:30]} Ra4 {[%emt 0:01:21]} 32. Rc1 {[%emt 0:05:12]} Ra3 {[%emt 0:02:22]} 33. Qe1 {[%emt 0:00:05]} Qd8 {[%emt 0:00:20]} 34. Rc3 {[%emt 0:00:55]} (34. Rd1 $5 {[%cal Rd1d8]} Qc8 35. Bc1 $11) 34... Rxc3 {[%emt 0:02:00]} 35. Qxc3 {[%emt 0:00:03]} Qa8 {[%emt 0:00:30]} 36. Qd3 {[%emt 0:00:18]} Qd8 {[%emt 0:00:01] Inhibits Qd7.} 37. Qc2 {[%emt 0:00:31]} Qa8 {[%emt 0:00:50]} 38. g4 {[%emt 0:00:30]} h6 {[%emt 0:00:30]} 39. Kf2 {[%emt 0:00:30]} Kf8 {[%emt 0:00:30]} 40. Kg3 {[%emt 0:00:30]} Bd6 {[%emt 0:00:30]} 41. g5 {[%emt 0:00:30]} hxg5 {[%emt 0:00:47]} 42. hxg5 {[%emt 0:00:31] aiming for Qh2.} Ke7 {[%emt 0:00:58] [#]} (42... Qa3 $11 43. Bd2 Ke7) 43. Qh2 $1 $16 {[%emt 0:01:07] Black must now prevent Qh7.} Qg8 {[%emt 0:00:13] [#] Against Qh7} (43... Bxe4 $2 44. gxf6+ gxf6 45. Qh7+ Ke8 46. Qg8+ Kd7 47. Qxa8 $18) 44. Qh5 {[%emt 0:02:21]} (44. g6 $1 $16) 44... Qxc4 $2 {[%emt 0:00:52][%mdl 8192]} (44... Kd7 $14) 45. Qh7 $18 {[%emt 0:00:30] White wants to mate with gxf6+.} Kf8 {[%emt 0:00:30]} 46. Bh5 $2 {[%emt 0:00:30]} ({White must play} 46. gxf6 $18 Qg8 47. Qg6) 46... fxg5 $2 {[%emt 0:00:33][%mdl 8192]} (46... Qb3 $11 47. Kf3 (47. Qh8+ Qg8 $17) 47... Qd1+ 48. Kg3 Qb3) 47. Qg6 {[%emt 0:00:50] Weighted Error Value: White=0.24 (precise) /Black=0.26 (precise)} 1-0

[Event "5th Baskent University Open 2022"]
[Site "Ankara"]
[Date "2022.07.06"]
[Round "7.12"]
[White "Altun, Arda"]
[Black "Bekiragaoglu, Umut"]
[Result "0-1"]
[ECO "B94"]
[WhiteElo "2213"]
[BlackElo "2067"]
[Annotator "TA"]
[PlyCount "104"]
[EventDate "2022.07.02"]
[EventType "swiss"]
[EventCountry "TUR"]
[SourceTitle "playchess.com"]
[Source "ChessBase"]
[SourceQuality "1"]
[TimeControl "5400+30"]

{[%evp 11,104,23,35,23,26,38,41,18,17,16,30,22,9,15,21,13,34,20,36,28,52,43,47,49,62,60,115,68,66,54,75,49,50,21,64,58,143,143,235,233,226,231,244,254,585,564,499,486,681,684,680,610,873,0,0,-150,-148,-134,-136,-122,-139,-117,-127,-205,-77,-77,-77,-77,-77,-93,-77,-145,-114,-154,-147,-241,-255,-518,-517,-585,-583,-858,-1279,-1241,-1201,-1189,-1173,-1053,-1053,-854,-858,-1923,-1848,-3066,-2837]} 1. e4 {[%emt 0:07:00]} c5 {[%emt 0:01:00]} 2. Nf3 {[%emt 0:00:30]} d6 {[%emt 0:00:00]} 3. d4 {[%emt 0:00:30]} cxd4 {[%emt 0:00:00]} 4. Nxd4 {[%emt 0:00:30]} Nf6 {[%emt 0:00:30]} 5. Nc3 {[%emt 0:00:30]} a6 {[%emt 0:00:30]} 6. Bg5 {[%emt 0:00:00]} Nbd7 {[%emt 0:00:30]} 7. Qe2 {[%emt 0:00:00] 7.Qe2 is setting a new trend. B94: Sicilian Najdorf: 6 Bg5 Nbd7.} h6 {[%emt 0:00:30]} 8. Bh4 {[%emt 0:00:30]} g6 {[%emt 0:00:00]} 9. O-O-O {[%emt 0:00:00] White is slightly better.} e5 {[%emt 0:00:00]} 10. Nb3 {[%emt 0:01:00][%cal Of2f4]} Be7 {[%emt 0:00:00]} 11. Qd2 {[%emt 0:02:30]} b5 {[%emt 0:00:00]} 12. a3 {[%emt 0:00:00]} Bb7 {[%emt 0:00:30]} 13. Bd3 {[%emt 0:00:00]} Kf8 {[%emt 0:01:30]} 14. Kb1 {[%emt 0:07:30]} Kg7 {[%emt 0:00:30]} 15. f4 {[%emt 0:01:30]} exf4 {[%emt 0:06:30]} 16. Bf2 {[%emt 0:00:30] [#]} Ne5 $146 {[%emt 0:02:30]} ({Predecessor:} 16... Ng4 17. Bd4+ Bf6 18. Qxf4 Bxd4 19. Nxd4 Nde5 20. h3 Qf6 21. Qd2 Nxd3 22. cxd3 Qxd4 23. hxg4 {1-0 (39) Durarbayli,V (2630)-Li,R (2564) Saint Louis 2017}) 17. Qxf4 {[%emt 0:02:30]} Qc7 {[%emt 0:04:30]} 18. Rhf1 {[%emt 0:02:30]} Bc8 {[%emt 0:06:30]} (18... Nh5 $14 19. Qd2 Nf6) 19. Nd5 {[%emt 0:27:30]} (19. Bd4 $16 {aiming for Nd5.} Kh7 20. Be2) 19... Nxd5 $14 {[%emt 0:00:30]} 20. exd5 {[%emt 0:00:00] Strongly threatening Bd4.} f5 {[%emt 0:11:30]} 21. Bd4 {[%emt 0:09:00][%cal Og2g4]} Rf8 {[%emt 0:11:30]} 22. h3 {[%emt 0:08:30][%cal Bh2h3,Bh3h4,Bh4g5][%mdl 32]} Bd7 {[%emt 0:08:30]} 23. Nc5 {[%emt 0:04:30]} Bg5 {[%emt 0:09:30]} (23... Bf6 $1 $14 24. Nxd7 Qxd7) 24. Qg3 $16 {[%emt 0:00:30]} Kh7 {[%emt 0:16:48]} (24... Rae8 $16) 25. Nxd7 {[%emt 0:05:30]} Qxd7 {[%emt 0:00:27]} 26. h4 $1 {[%emt 0:00:44]} (26. Bxe5 $6 dxe5 27. Qxe5 Rad8 $16) 26... Nxd3 {[%emt 0:01:09]} 27. hxg5 {[%emt 0:00:23]} Nc5 $2 {[%emt 0:01:58]} (27... Ne5 {is more resistant.} 28. Rfe1 (28. Bxe5 dxe5 29. Qxe5 Rfe8 $18) 28... f4) 28. Rh1 $18 {[%emt 0:02:04]} h5 {[%emt 0:00:13]} 29. Qf3 {[%emt 0:04:09][%cal Oh1h5] White threatens Rxh5+! and mate.} Kg8 {[%emt 0:06:46] [#]} (29... Qe8 $142 30. Rde1 Qf7) 30. Rxh5 $1 {[%emt 0:06:09][%mdl 512]} gxh5 {[%emt 0:00:39]} 31. Rh1 $1 {[%emt 0:00:06]} ({But not} 31. Qxh5 $2 Qh7 32. g4 Qxh5 33. gxh5 f4 $19) 31... Kf7 {[%emt 0:04:52]} 32. Bf6 $2 {[%emt 0:01:35]} (32. b4 $18) 32... Rh8 {[%emt 0:01:14]} 33. Rxh5 {[%emt 0:00:30] [#]} (33. Bxh8 $11 Rxh8 34. Rxh5) 33... Ne4 $1 $17 {[%emt 0:00:13]} 34. Qh3 {[%emt 0:04:42] [#] White wants to mate with Rh7+.} Nxf6 {[%emt 0:01:34]} 35. Rxh8 {[%emt 0:00:30]} Rxh8 {[%emt 0:00:30]} 36. Qxh8 {[%emt 0:00:00] [#]} Ne8 {[%emt 0:00:54][%cal Bf6e8,Be8g7,Bg7f5][%mdl 32]} ({Don't play} 36... Nxd5 $6 37. g6+ Kxg6 38. Qg8+ Qg7 39. Qxd5 $11) 37. Qh6 {[%emt 0:01:26] [#]} (37. Qh7+ $17 Ng7 38. b3) 37... Qe7 {[%emt 0:00:50]} (37... Kg8 $1 $19 {has better winning chances. White must now prevent ...Qf7.} 38. Qg6+ Kf8) 38. Qh7+ {[%emt 0:02:16]} Ng7 {[%emt 0:00:58]} 39. g6+ {[%emt 0:00:30]} Ke8 {[%emt 0:00:00]} 40. Qh8+ {[%emt 0:00:51]} Qf8 {[%emt 0:00:11]} 41. Qh6 {[%emt 0:00:17]} ({White should play} 41. Qh4) 41... f4 {[%emt 0:00:38]} 42. Qh3 {[%emt 0:00:53]} Ke7 {[%emt 0:00:15]} 43. Qc3 {[%emt 0:00:00]} (43. Qh2 $17) 43... Nf5 $19 {[%emt 0:01:07]} 44. Qe1+ $2 {[%emt 0:01:51]} (44. Qf3 Qh6 45. g4 (45. Qe4+ $2 Kf6 $19)) 44... Kf6 {[%emt 0:00:26] Black is clearly winning.} 45. Qf2 {[%emt 0:00:31]} Qh6 {[%emt 0:00:20]} 46. Qb6 {[%emt 0:00:30]} Qxg6 {[%emt 0:00:05]} 47. Qd8+ {[%emt 0:00:30]} Ke5 {[%emt 0:00:30]} 48. Qh8+ {[%emt 0:00:00]} Kxd5 {[%emt 0:00:26] And now ...Ne3 would win.} 49. Qa8+ {[%emt 0:00:10]} Ke5 {[%emt 0:00:30]} 50. Qh8+ {[%emt 0:00:30]} Ke4 {[%emt 0:00:00]} 51. Qa8+ {[%emt 0:00:00]} d5 {[%emt 0:00:20] Threatens to win with ...Ne3.} 52. Qc8 {[%emt 0:00:00]} Ne3 {[%emt 0:00:30] Weighted Error Value: White=0.53/Black=0.31} 0-1